Cogmind - Beta 16.1 @@@ ROGUE MODE // 2026.03.03 @ 15:55:09 Player: morimori Result: Destroyed by SP-DSS(R) with Subdweller Machine Gun Performance ------------- Evolutions (0) 0 Regions Visited (3) 600 Robots Destroyed (32) 160 Value Destroyed (693) 693 Prototype IDs (0) 0 Alien Tech Used (0) 0 Bonus (27) 27 TOTAL SCORE: 1480 Bonus ------- Follower Combat Kills 39 Friendly Fire -12 Cogmind --------- Core Integrity 0/250 Matter 232/300 Energy 98/100 System Corruption 0% Temperature Cool (0) Movement Rolling (175) Ox5 Location -10/Subcaves Parts ------- > --- POWER (1) -------- (None) > --- PROPULSION (2) --- Light Treads Compact Wheel > --- UTILITY (2) ------ Huge Storage Unit Seismic Detector > --- WEAPON (2) ------- Assault Rifle Assault Rifle > --- INVENTORY (25) --- Ion Engine Light Nuclear Core Light Nuclear Core Light Treads Wheel Wheel Hover Unit Hover Unit Hover Unit Hover Unit Heat Sink Improved Heat Sink Improved Heat Sink Large Storage Unit Sensor Array Hacking Suite Light Assault Rifle Light Assault Rifle Light Assault Rifle Light Assault Rifle Peak State ------------ > --- POWER ------------ Ion Engine > --- PROPULSION ------- Light Treads Wheel > --- UTILITY ---------- Improved Heat Sink Huge Storage Unit > --- WEAPON ----------- Light Assault Rifle Light Assault Rifle > --- INVENTORY -------- Ion Engine Light Ion Engine Light Nuclear Core Light Nuclear Core Compact Wheel Compact Wheel Hover Unit Heat Sink Improved Heat Sink Small Storage Unit Large Storage Unit Sensor Array Seismic Detector Seismic Detector Hacking Suite Medium Laser Assault Rifle Assault Rifle Assault Rifle Light Assault Rifle Light Assault Rifle Light Assault Rifle [Rating: 12] Favorites ----------- Power Ion Engine Engine Ion Engine Propulsion Light Treads Treads Light Treads Wheel Wheel Utility Huge Storage Unit Device Seismic Detector Storage Huge Storage Unit Weapon Assault Rifle Ballistic Gun Assault Rifle Launcher Grenade Launcher Build | -11 -10 -10 -10 ------- Run | Yrd Mat Min Sub Slots Evolved . | . . . . Power . | . . . . Propulsion . | . . . . Utility . | . . . . Weapon . | . . . . Parts Attached 31 | 7 15 7 2 Power 4 | 1 2 1 . Engine 4 | 1 2 1 . Core . | . . . . Reactor . | . . . . Propulsion 10 | 2 4 3 1 Treads 3 | 1 1 1 . Leg . | . . . . Wheel 7 | 1 3 2 1 Hover . | . . . . Flight . | . . . . Utility 8 | 2 3 2 1 Device 6 | 1 2 2 1 Storage 2 | 1 1 . . Processor . | . . . . Hackware . | . . . . Protection . | . . . . Artifact . | . . . . Weapon 9 | 2 6 1 . Energy Gun . | . . . . Energy Cannon . | . . . . Ballistic Gun 8 | 2 6 . . Ballistic Cannon . | . . . . Launcher 1 | . . 1 . Special Weapon . | . . . . Impact Weapon . | . . . . Slashing Weapon . | . . . . Piercing Weapon . | . . . . Special Melee Weapon . | . . . . Unidentified Prototypes . | . . . . Parts Lost 13 | . 7 3 3 Power 2 | . 1 . 1 Propulsion 4 | . 3 1 . Utility 2 | . 1 . 1 Weapon 5 | . 2 2 1 Highest Loss Streak 6 | . 6 3 2 To Critical Strikes . | . . . . Average Backups 19 | 3 16 24 21 Power 3 | 1 2 3 3 Propulsion 4 | 2 3 7 7 Utility 6 | . 6 7 6 Weapon 4 | . 4 6 4 Tool/Special . | . . . . Unused Backups 14 | . . 2 12 Power 4 | . . 1 3 Propulsion 3 | . . . 3 Utility 3 | . . . 3 Weapon 4 | . . 1 3 Tool/Special . | . . . . Average Slot Usage (%) 99 | . 99 99 99 Engine 13 | . 14 14 13 Treads 13 | . 13 14 11 Wheel 14 | . 13 13 16 Device 14 | . 14 14 14 Storage 14 | . 14 14 14 Ballistic Gun 26 | . 27 26 21 Launcher 1 | . . 1 6 Peak Build Rating 12 | 7 12 12 11 Average Rating 9 | 5 9 11 10 On Entrance 7 | . 7 12 10 Avg Prop Armor Cover (%) 11 | 9 11 11 9 Naked Turns . | . . . . Heaviest Build 91 | 13 90 91 91 Greatest Support 26 | 20 20 16 26 Greatest Overweight (x) 8 | 1 8 8 8 Average Overweight (x) 6 | . 6 7 4 Largest Inventory Capacity 25 | 8 25 25 25 Average Capacity 24 | 7 24 25 25 Most Carried 25 | 6 25 25 22 Average Carried 19 | 4 16 24 21 Final Capacity 25 | 8 25 25 25 Final Carried 25 | 6 25 22 20 Class Distribution -------------------- 100% | Mutant Dominant Class ---------------- Mutant | -10/Materials Mutant | -10/Mines Mutant | -10/Subcaves Resources | -11 -10 -10 -10 ----------- Run | Yrd Mat Min Sub Matter Collected 1125 | 324 475 213 113 Remotely . | . . . . Salvage Created 1243 | 122 796 226 99 Parts 75 | 10 37 19 9 Haulers Intercepted 2 | . 2 . . Recyclers Shooed 1 | . 1 . . Parts Field Recycled . | . . . . Retrieved Matter . | . . . . Parts Self-Destructed 19 | . . . 19 Prevented . | . . . . Parts Restored . | . . . . Kills | -11 -10 -10 -10 ------- Run | Yrd Mat Min Sub Combat Hostiles Destroyed 21 | . 11 5 5 Guns 21 | . 11 5 5 Classes Destroyed 9 | 2 4 2 1 Builder 1 | . . 1 . Tunneler 2 | 2 . . . Hauler 2 | . 2 . . Recycler 3 | 1 2 . . Operator 2 | . 2 . . Watcher 1 | . 1 . . Swarmer 7 | . . 3 4 Grunt 13 | . 11 2 . Subdweller 1 | . . . 1 Best Kill Streak 4 | 2 4 2 4 Combat Bots Only 4 | . 4 2 4 Max Kills in Single Turn 2 | 1 1 1 2 Gunslinging . | . . . . Exploded . | . . . . Melee . | . . . . Uniques/NPCs Destroyed . | . . . . Combat | -11 -10 -10 -10 -------- Run | Yrd Mat Min Sub Hostile Shots Fired 211 | . 102 38 71 Missed 61 | . 24 7 30 Hits 150 | . 78 31 41 Projectile 150 | . 78 31 41 AOE 9 | . . 9 . Critical Strikes 3 | . 2 1 . Damage Taken 1988 | . 956 670 362 Core 252 | . 89 99 64 Absorbed by Shields . | . . . . Regen/Repaired (Parts) 255 | . 255 . . Core Remaining (%) 100 | 100 . . . Volleys Fired 117 | 9 66 26 16 Largest 2 | 2 2 2 2 Hottest 50 | 40 40 50 40 Shots Fired 231 | 18 130 51 32 Gun 230 | 18 130 50 32 Cannon . | . . . . Launcher 1 | . . 1 . Special . | . . . . Kinetic 230 | 18 130 50 32 Thermal . | . . . . Explosive 1 | . . 1 . Electromagnetic . | . . . . Robot Hit Streak 13 | 6 13 6 3 Robot Miss Streak 4 | 2 4 2 4 Penetration Max . | . . . . Secondary Targets 3 | . 1 . 2 Max Gunslinging Chain 1 | . 1 . 1 Shots Hit Robots 146 | 12 84 33 17 Core Hits 65 | 4 38 15 8 Critical Kills 1 | . 1 . . Critical Parts Destroyed . | . . . . Critical Strikes 1 | . 1 . . Destroy 1 | . 1 . . Melee Attacks . | . . . . Impact . | . . . . Slashing . | . . . . Piercing . | . . . . Sneak Attacks . | . . . . Combat Hostiles . | . . . . Follow-up Attacks . | . . . . Damage Inflicted 1784 | 146 1007 407 224 Guns 1729 | 146 1007 352 224 Cannons . | . . . . Explosions 36 | . . 36 . Melee . | . . . . Ramming 19 | . . 19 . Kinetic 1729 | 146 1007 352 224 Thermal . | . . . . Explosive 36 | . . 36 . Electromagnetic . | . . . . Impact . | . . . . Slashing . | . . . . Piercing . | . . . . Highest Corruption . | . . . . Average Corruption . | . . . . Corruption Purged . | . . . . Corruption Blocked . | . . . . Overload Shots . | . . . . Overflow Damage . | . . . . Projectiles . | . . . . Explosions . | . . . . Melee . | . . . . Knockbacks 1 | . . 1 . Impact 1 | . . 1 . Kinetic . | . . . . Secondary . | . . . . Self-Inflicted Damage 47 | . . 47 . Shots 1 | . . 1 . Rammed 1 | . . 1 . Targets Rammed 1 | . . 1 . Kicked . | . . . . Crushed . | . . . . Highest Temperature 10 | . 10 1 . Average Temperature 5 | . 6 1 . Received Heat Transfer 753 | . 564 87 102 Siege Activations . | . . . . Martial Activations . | . . . . Shielding Activations . | . . . . Robots Disrupted . | . . . . Combat Hostiles . | . . . . Robots Corrupted . | . . . . Combat Hostiles . | . . . . Parts Fried . | . . . . Impact Corruptions . | . . . . Robots Melted . | . . . . Combat Hostiles . | . . . . Parts Melted . | . . . . Heat Transferred . | . . . . Parts Sabotaged . | . . . . Parts Stolen . | . . . . Parts Stripped . | . . . . Power Chain Reactions . | . . . . Alert | -11 -10 -10 -10 ------- Run | Yrd Mat Min Sub Maximum Alert Level . | . . . . Low Security (%) 100 | 100 100 100 . Level 1 . | . . . . Level 2 . | . . . . Level 3 . | . . . . Level 4 . | . . . . Level 5 . | . . . . High Security . | . . . . Max Security . | . . . . Peak Influence 90 | 10 90 55 . Initial . | . . . . Average 13 | . 17 7 . Influence Increases 816 | 15 374 182 245 Destroy 0b10 Robot/C 420 | . 220 120 80 Destroy 0b10 Robot/NC 70 | 15 35 20 . Destroy Leader 86 | . 66 20 . Allied During Kill 1 | . . 1 . Successful Hack 38 | . 38 . . Destroy Structure 6 | . . 6 . Lose Combat Pursuer 195 | . 15 15 165 Influence Decreases 731 | 15 371 185 160 Entered New Map 3 | . . 3 . Time Decay 647 | 15 331 161 140 Lost Part 61 | . 40 1 20 Lost Ally 20 | . . 20 . Squads Dispatched 3 | . 3 . . Investigation 2 | . 2 . . Extermination . | . . . . Reinforcement 1 | . 1 . . Assault . | . . . . Garrison . | . . . . Intercept . | . . . . Searches Triggered . | . . . . Construction Impeded . | . . . . Haulers Reinforced . | . . . . Active Scanning Responses . | . . . . Cargo Convoy Interrupts . | . . . . Stealth | -11 -10 -10 -10 --------- Run | Yrd Mat Min Sub Distress Signals 1 | . 1 . . Communications Jammed . | . . . . Distress Signals . | . . . . Times Spotted 44 | . 28 8 8 Peak Tracking Total 7 | . 7 3 7 Tactical Retreats 8 | . 1 2 5 Traps | -11 -10 -10 -10 ------- Run | Yrd Mat Min Sub Traps Triggered . | . . . . Indirectly . | . . . . Trap Hack Attempts . | . . . . Triggered . | . . . . Disarmed . | . . . . Reprogrammed . | . . . . Reused . | . . . . Traps Extracted . | . . . . Installed . | . . . . Triggered . | . . . . Machines | -11 -10 -10 -10 ---------- Run | Yrd Mat Min Sub Machines Disabled . | . . . . Max in Single Turn . | . . . . Machines Repaired . | . . . . Machines Dismantled . | . . . . Machines Sabotaged . | . . . . Overloaded Fab Kills . | . . . . Hacking | -11 -10 -10 -10 --------- Run | Yrd Mat Min Sub Machines Accessed 10 | . 9 . 1 Terminals 6 | . 6 . . Fabricators . | . . . . Repair Stations 1 | . 1 . . Recycling Units 2 | . 2 . . Scanalyzers . | . . . . Garrison Access . | . . . . Total Hacks 32 | . 27 . 5 Successful 20 | . 15 . 5 Failed 12 | . 12 . . Catastrophic 2 | . 2 . . Database Lockouts . | . . . . Manual 14 | . 14 . . Terminals 15 | . 15 . . Fabricators . | . . . . Repair Stations 8 | . 8 . . Recycling Units 4 | . 4 . . Scanalyzers . | . . . . Garrison Access . | . . . . Terminal Hacks 8 | . 3 . 5 Record 5 | . . . 5 Part Schematic 1 | . 1 . . Terminal Index 1 | . 1 . . Locate Traps 1 | . 1 . . Fabricator Hacks . | . . . . Repair Station Hacks 8 | . 8 . . Scan Component 4 | . 4 . . Repair 4 | . 4 . . Recycling Unit Hacks 1 | . 1 . . Retrieve Components 1 | . 1 . . Scanalyzer . | . . . . Garrison Access Hacks . | . . . . Unauthorized Hacks 3 | . 3 . . Terminals 3 | . 3 . . Botnet 2 | . 2 . . Operators 1 | . 1 . . Fabricators . | . . . . Repair Stations . | . . . . Recycling Units . | . . . . Scanalyzers . | . . . . Garrison Access . | . . . . Data Cores Recovered . | . . . . Used . | . . . . Hacking Detections 9 | . 9 . . Full Trace Events 2 | . 2 . . Feedback Events . | . . . . Feedback Blocked . | . . . . Robot Schematics Acquired . | . . . . Robots Built . | . . . . Authchips . | . . . . Time . | . . . . Total Robot Build Rating . | . . . . Part Schematics Acquired 1 | . 1 . . Parts Built . | . . . . Authchips . | . . . . Time . | . . . . Total Part Build Rating . | . . . . Part Studies Acquired . | . . . . Parts Repaired 4 | . 4 . . Time 116 | . 116 . . Parts Recycled . | . . . . Recycled Matter . | . . . . Retrieved Matter . | . . . . Retrieved Components 3 | . 3 . . Parts Scanalyzed . | . . . . Part Schematics Acquired . | . . . . Parts Damaged . | . . . . Bothacking | -11 -10 -10 -10 ------------ Run | Yrd Mat Min Sub Used RIF Installer . | . . . . Robots Hacked . | . . . . Non-combat . | . . . . Combat . | . . . . Robot Hacks Applied . | . . . . Relay Couplers Released . | . . . . Fabnet Peak Effective % . | . . . . Robots Rewired . | . . . . Allies Hacked . | . . . . Hacks Repelled . | . . . . Allies | -11 -10 -10 -10 -------- Run | Yrd Mat Min Sub Total Allies 2 | . . 2 . Largest Group 2 | . . 2 . Highest-Rated Group 48 | . . 48 . Highest-Rated Ally 31 | . . 31 . Total Orders . | . . . . Ally Attacks 4 | . . 4 . Total Damage 83 | . . 83 . Kills 1 | . . 1 . Allies Corrupted . | . . . . Allies Melted . | . . . . Intel | -11 -10 -10 -10 ------- Run | Yrd Mat Min Sub Active Infowar (turns) 1145 | 14 128 428 575 Sensors 1 | . . . 1 Seismic 1144 | 14 128 428 574 Robot Analysis Total . | . . . . Derelict Logs Recovered . | . . . . Drone Launches . | . . . . Drone Recoveries . | . . . . Exploration | -11 -10 -10 -10 ------------- Run | Yrd Mat Min Sub Turns Passed 3110 | 117 1515 891 587 Spaces Moved 1262 | 64 579 373 246 Core 1 | 1 . . . Treads 55 | 18 7 . 30 Legs . | . . . . Wheels 1206 | 45 572 373 216 Hover . | . . . . Flight . | . . . . Fastest Speed 50 | 50 95 175 135 Average Speed 190 | 111 191 196 202 Slowest Speed 480 | 160 480 200 480 Overloaded Moves . | . . . . Propulsion Burnouts . | . . . . Robots Hopped . | . . . . Potential Cave-ins . | . . . . Cave-ins Triggered . | . . . . Exploration Rate (%) 34 | 4 75 46 13 Regions Visited 3 Branch Regions 2 Pre-discovered Areas 1 | . . . 1 Known Exits Taken . | . . . . Unknown Exits Taken 3 | 1 1 1 . Scrap Searched 2 | . . 2 . Spaces Dug . | . . . . Terrain Destroyed 7 | . . 7 . Melee . | . . . . Projectile . | . . . . AOE 7 | . . 7 . Terrain Rammed . | . . . . Walls Destroyed . | . . . . Machines Disabled . | . . . . Actions | -11 -10 -10 -10 --------- Run | Yrd Mat Min Sub Total 1731 | 88 855 486 302 Wait 270 | 3 171 66 30 Move 1259 | 63 578 372 246 Hop . | . . . . Pick Up 32 | 6 22 4 . Fast Attach 7 | 7 . . . Attach 12 | . 7 3 2 Detach . | . . . . Swap 25 | . 10 7 8 Drop 8 | . 1 7 . Fire 117 | 9 66 26 16 Melee . | . . . . Ram 1 | . . 1 . Kick . | . . . . Crush . | . . . . Escape Stasis . | . . . . Rewire . | . . . . Trap . | . . . . Miscellaneous . | . . . . Route ------- -11/Scrapyard -10/Materials (discovered 3 exits: [*Mat] / [*Min x2]) -10/Mines (discovered 2 exits: [*Mat] / *Sub) -10/Subcaves History --------- Turn | Location | Event 16 | -11/Scrapyard | Discovered new exit (range 16) 118 | -11/Scrapyard | Entered Materials 119 | -10/Materials | Discovered new exit (range 14) 311 | -10/Materials | Build established: Mutant 712 | -10/Materials | Discovered new exit (range 15) 930 | -10/Materials | Discovered new exit (range 13) 1051 | -10/Materials | Lost 6 parts (1p2n1u2w) 1426 | -10/Materials | Repaired Assault Rifle 1462 | -10/Materials | Repaired Assault Rifle 1501 | -10/Materials | Repaired Imp. Heat Sink 1528 | -10/Materials | Repaired Assault Rifle 1633 | -10/Materials | Entered Mines 1641 | -10/Mines | Discovered new exit (range 15) 1646 | -10/Mines | Met a Derelict bent on vengeance 1944 | -10/Mines | Found DCF Scrap (15 items) 1966 | -10/Mines | Core integrity fell below 50% 2157 | -10/Mines | Discovered new exit (range 13) 2367 | -10/Mines | Assembled infested the area 2454 | -10/Mines | Lost 3 parts (1n2w) 2524 | -10/Mines | Entered Subcaves 2566 | -10/Subcaves | Visited Clippyterm 2572 | -10/Subcaves | Learned location of Section 7 (-2) 2572 | -10/Subcaves | Learned Research security intel 2791 | -10/Subcaves | Core integrity fell below 20% 3111 | -10/Subcaves | Destroyed by SP-DSS(R) with Subdweller Machine Gun Last Messages --------------- 02882_ Subatomizers dissect the Ion Engine, destroying it. 02895_ Subatomizers dissect the Wheel. 02911_ 7G-91J(u) tweaks Twisted Machinery. 02921_ Subatomizers dissect the Wheel. 02945_ Subatomizers dissect the Wheel, destroying it. 02958_ Subatomizers dissect the Sub. Optics. 02965_ Acquired 72 matter. 02970_ Subatomizers dissect the Sub. Optics. 02981_ 7G-91J(u) tweaks Twisted Machinery. 03002_ Subatomizers dissect the Sub. Optics. 03013_ Acquired 14 matter. 03015_ Acquired 2 matter. 03016_ Subatomizers dissect the Sub. Optics. 03026_ Acquired 10 matter. 03028_ Subatomizers dissect the Sub. Optics. 03059_ 7G-91J(u) tweaks Twisted Machinery. 03081_ Seismic Detector destroyed. 03109_ Ion Engine destroyed. 03111_ 1S-R4A(R) destroyed. 03111_ Switching to secondary target: SP-DSS(R). Map ----- +----------------------------------------------------+ | ?????????????????????????????????????????????????? | | ?????????????????????????????????????????????????? | | ?????????????????????????????????????????????????? | | ?????????????????????????????????????????????????? | | ?????????????????????????????????????????????????? | | ?????????????????????????????????????????????????? | | ?????????????????????????????????????????????????? | | ?????????????????????????????????????????????????? | | ?????????????????????????????????????????????????? | | ?????????????????????????????????????????????????? | | ?????????????????????????????????????????????????? | | ?????????????????????????????????????????????????? | | ????????????????###????##????????????????????????? | | ???????????##### " ##### #####???????????????????? | | ??????????##"" " ? "" #???????????????????? | | ??????????#""""""""?"""""""% #???????????????????? | | ?????????##""""""""?""""""" #???????????????????? | | ?###????## #???????#" ####????????????????? | | ## #????# ##???????# % #????????????????? | | #???## ##????????# # #????????????????? | | #?### ##?????????## ### #????????????????? | | #### & ##???????????# ######????????????????? | | ### & &#???????????## ##?????????????????????? | | ## #####??????### ###????????????????????? | | ![## ##?????# #????????????????????? | | ###&% % ####### @ #????????????????????? | | ### "# # ##????????????????????? | | ## #?????????????????????? | | % #?????????????????????? | | % ##### # # #?????????????????????? | | ##???##### #????????????????????? | | % #????????# ##????????????????????? | | % #???????# ####?????????????????????? | | % %????## #????????????????????????? | | %% ?????# #????????????????????????? | | % ###????# #????????????????????????? | | #### % ##??????# [ ????????????????????????? | | ##?? ??????#R% ##???????????????????????? | | # ##??? ?????? &##????????????????????????? | | ####???? ??????? ##?????????????????????????? | | ???????? ??????????#???????????????????????????? | | ?????????????????????????????????????????????????? | | ?????????????????????????????????????????????????? | | ?????????????????????????????????????????????????? | | ?????????????????????????????????????????????????? | | ?????????????????????????????????????????????????? | | ?????????????????????????????????????????????????? | | ?????????????????????????????????????????????????? | | ?????????????????????????????????????????????????? | | ?????????????????????????????????????????????????? | +----------------------------------------------------+ Best States ------------- Heat Dissipation 39 Energy Generation 10 Energy Capacity 250 Matter Stores 300 Matter Capacity 300 Sight Range 16 Terrain Scan Density 10 Evasion (%) 44 Recoil Reduction 1 Item Schematics ----------------- Hcp. Storage Unit | -10/Materials | Hacked Robot Schematics ------------------ None Fabricated ------------ Nothing Repaired ---------- Assault Rifle | 4% | -10/Materials Assault Rifle | 12% | -10/Materials Imp. Heat Sink | 57% | -10/Materials Assault Rifle | 46% | -10/Materials Studied --------- None Alien Tech Used ----------------- None Achievements -------------- None Challenges ------------ None Game ------ Seed DynamicHardcellObfuscator Manual? 0 Play Time 00:18:27 Cumulative 506.3 hours Start 2026.03.03 @ 15:32:12 End 2026.03.03 @ 15:55:09 Sessions 1 Manual Loads 0 Difficulty Rogue Special Mode None Game No. 243 Rogue 243 Adventurer 0 Explorer 0 Win Type - Total 9 Types 7/0/1/0/0/0/1/0/0/0 Lore% 70 Gallery% 70 Achievement% 49 Wizard Run 0 Options --------- Layout 0 ASCII 0 Keyboard 1 Movement Vi Keybinds 0 Fullscreen 2 Font 18/SmallcapsGlow Map View 76x50 Zoom Use 0% Tactical HUD 1 Map Filters NONE Filters NONE Steam 1 RUN: 4dc88c89-9752-4a7f-8107-5ee7790166cb